bitfinex-derivatives/quotes_ETHF0:USTF0_20250702
["timestamp","ask_amount","ask_price","bid_price","bid_amount"]
[1751471977744,43.161,2499.3,2499.2,3.17943238]
[1751471979047,43.96086,2499.3,2499.2,3.17943238]
[1751471979347,43.161,2499.3,2499.2,3.17943238]
[1751471981546,64.46974555,2499.8,2499.5,1.99945]
[1751471981748,12.54377,2499.7,2499.6,0.79975]
[1751471981947,43.89777,2499.7,2499.6,0.79975]
[1751471982550,43.098,2499.7,2499.6,0.79975]
[1751471982750,43.102,2499.7,2499.6,0.79975]
[1751471983152,43.90173,2499.7,2499.6,0.79975]
[1751471983647,43.102,2499.7,2499.6,0.79975]
[1751471983851,11.744,2499.7,2499.6,0.79975]
[1751471984052,43.101,2499.7,2499.6,0.79975]
[1751471984450,43.101,2499.7,2499.6,3.17929238]
[1751471984953,43.101,2499.7,2499.6,0.79975]
[1751471985154,43.101,2499.7,2499.6,3.17929238]
[1751471985855,11.744,2499.7,2499.6,3.17929238]
[1751471986049,57.588,2499.8,2499.7,0.79973]
[1751471986354,100.651,2499.8,2499.7,3.85207238]
[1751471987355,100.651,2499.8,2499.7,1.47253]
[1751471989155,101.4507,2499.8,2499.7,1.47253]
[1751471989556,100.651,2499.8,2499.7,1.47253]
[1751471990255,100.651,2499.8,2499.6,2.37954238]
[1751471990256,0.79973,2499.7,2499.6,2.37954238]
[1751471990455,2.21583,2499.7,2499.6,2.37954238]
[1751471990656,2.21583,2499.7,2499.6,3.17930238]
[1751471990855,2.21583,2499.7,2499.6,2.37954238]
[1751471991863,0.79976,2499.6,2499.5,3.87102238]
[1751471992053,32.09576,2499.6,2499.5,3.87102238]
[1751471992254,32.09576,2499.6,2499.5,3.07124238]
[1751471992459,32.09576,2499.6,2499.5,3.87104238]
[1751471993258,32.09576,2499.6,2499.5,3.07124238]
[1751471993459,32.09576,2499.6,2499.5,3.87104238]
[1751471994964,31.296,2499.6,2499.5,1.4915]
[1751471995259,31.296,2499.6,2499.5,3.86854808]
[1751471995963,32.09576,2499.6,2499.5,3.86854808]
[1751471996164,32.09576,2499.6,2499.5,1.4915]
[1751471996464,32.09576,2499.6,2499.5,3.86852597]
[1751471997264,33.47696,2499.6,2499.5,3.17682597]
[1751471997459,33.47696,2499.6,2499.5,0.7998]
[1751471997762,33.47696,2499.6,2499.5,3.17775363]
[1751471998156,33.47696,2499.6,2499.5,2.37795363]
[1751471998354,34.1388816,2499.6,2499.5,2.37795363]
[1751471998758,0.7998,2499.5,2499.4,3.17778363]
[1751471998957,0.1200216,2499.6,2499.5,0.7998]
[1751471999164,53.52137886,2499.6,2499.2,0.7112]
[1751471999460,0.79989,2499.2,2499.1,0.80592348]
[1751471999660,32.09489,2499.2,2499.1,0.00600348]
[1751471999860,33.48949,2499.2,2499.1,0.00600348]
[1751472000566,2.19449,2499.2,2499.1,0.00600348]
[1751472001471,1.3946,2499.2,2499.1,0.00600348]
[1751472002165,33.49149,2499.2,2499.1,0.00600348]
[1751472004663,1.3946,2499.2,2499.1,0.00600348]
[1751472004866,0.4958,2499.7,2499.1,0.00600348]
[1751472005067,31.296,2499.6,2499.1,0.00600348]
[1751472005261,0.12004081,2499.4,2499.1,0.00600348]
[1751472005467,0.12004081,2499.5,2499.1,0.00600348]
[1751472005761,13.64204,2500.1,2499.2,1.99974]
[1751472005960,1.99923,2499.9,2499.3,0.6687]
[1751472006167,0.7998,2499.5,2499.4,0.6856]
[1751472006366,0.79989,2499.2,2499.1,0.00600348]
[1751472006565,0.79988,2499.3,2499.2,0.79989]
[1751472006870,0.79989,2499.2,2499.1,0.00600348]
[1751472007072,32.09689,2499.2,2499.1,0.00600348]
[1751472007268,0.79989,2499.2,2499.1,0.00600348]
[1751472007472,32.09689,2499.2,2499.1,0.00600348]
[1751472007868,31.297,2499.2,2499.1,0.80592348]
[1751472009371,0.79983,2499.4,2499.3,0.79986]
[1751472009871,31.297,2499.5,2499.4,0.79983]
[1751472010564,0.79986,2499.4,2499.3,0.79985]
[1751472010772,32.0968,2499.5,2499.4,0.79983]
[1751472011173,31.297,2499.5,2499.4,0.79983]
[1751472011473,32.0968,2499.5,2499.4,0.79983]
[1751472011772,31.297,2499.5,2499.4,0.79983]
[1751472012867,0.79972,2499.8,2499.4,0.79983]
[1751472013074,0.79972,2499.8,2499.7,0.79971]
[1751472013274,32.2157464,2499.8,2499.7,0.79971]
[1751472013476,0.9197464,2499.8,2499.7,0.79971]
[1751472013673,32.2157464,2499.8,2499.7,0.79971]
[1751472013873,0.79973,2499.7,2499.6,1.49974]
[1751472014074,0.9197564,2499.8,2499.7,0.79973]
[1751472014378,31.295,2499.8,2499.7,0.79971]
[1751472015182,11.643,2499.9,2499.8,0.7997]
[1751472015474,0.79971,2499.8,2499.7,0.79972]
[1751472015676,31.295,2499.9,2499.8,0.79967]
[1751472016076,31.295,2499.9,2499.8,0.7997]
[1751472016276,31.295,2500.1,2499.7,1.99934]
[1751472016474,31.295,2500.1,2499.6,3.87466406]
[1751472016681,0.9196672,2500.0,2499.8,0.79969]
[1751472016880,0.1200072,2500.0,2499.6,0.7]
[1751472017079,7.2e-06,2500.0,2499.7,1.99934]
[1751472017375,3.9897325,2501.3,2499.6,0.7]
[1751472017376,31.295,2500.2,2499.8,1.3551]
[1751472017576,31.295,2500.2,2499.6,0.7]
[1751472017783,1.49437726,2500.1,2499.6,0.7]
[1751472017980,0.79964,2500.0,2499.8,0.79969]
[1751472018174,0.1200072,2500.0,2499.8,0.79969]
[1751472018379,31.405,2499.9,2499.8,0.79969]
[1751472018884,31.403,2499.9,2499.8,0.79969]
[1751472020785,31.403,2499.9,2499.6,7.22917406]
[1751472020786,31.39,2500.2,2500.1,0.7996]
[1751472020986,32.1896,2500.2,2500.0,0.79962]
[1751472021186,31.39,2500.2,2500.1,0.7996]
[1751472021386,32.18957,2500.2,2500.0,0.79961]
[1751472021885,32.18957,2500.2,2500.1,0.7996]
[1751472022185,32.18957,2500.2,2500.0,0.79962]
[1751472022583,0.7996,2500.1,2499.9,3.97430406]
[1751472022787,0.7996,2500.1,2499.9,0.79964]
[1751472023083,0.79965,2500.0,2499.8,0.79968]
[1751472023386,0.79967,2499.9,2499.8,0.79968]
[1751472023590,0.79965,2500.0,2499.8,0.79968]
[1751472023982,0.79967,2500.0,2499.8,0.79968]
[1751472024183,1.4225,2500.1,2499.6,0.7]
[1751472024385,0.1200048,2499.9,2499.6,1.49974]
[1751472024683,32.14271,2499.8,2499.6,1.49974]
[1751472024882,32.14271,2499.8,2499.7,0.79973]
[1751472025083,32.2627172,2499.8,2499.7,0.79973]
[1751472025387,31.4630072,2499.8,2499.7,0.79973]
[1751472026183,32.2627072,2499.8,2499.7,0.79973]
[1751472026383,31.4630072,2499.8,2499.7,0.79973]
[1751472026584,32.2627072,2499.8,2499.7,0.79973]
[1751472026784,32.2627072,2499.8,2499.6,3.07947263]
[1751472026785,32.2627072,2499.8,2499.6,3.87921263]
[1751472027293,0.79973,2499.7,2499.6,3.87921263]
[1751472027587,32.14272,2499.8,2499.7,0.79973]
[1751472027786,0.79973,2499.7,2499.6,3.07947263]
[1751472028090,0.79976,2499.6,2499.5,2.37947263]
[1751472028286,0.79983,2499.4,2499.3,0.79986]
[1751472028486,0.79986,2499.3,2499.1,3.18066754]
[1751472028686,0.79986,2499.3,2499.2,3.17941123]
[1751472029186,32.10884,2499.4,2499.1,2.38553471]
[1751472029394,11.679,2499.9,2499.1,2.38553471]
[1751472029589,33.30733,2499.8,2499.3,2.37953123]
[1751472029890,0.79986,2499.3,2499.2,3.04363123]
[1751472030190,0.79982,2499.5,2499.4,0.79983]
[1751472030581,0.12003601,2499.5,2499.4,0.79983]
[1751472030787,0.79974,2499.7,2499.3,2.37953123]
[1751472030981,0.79975,2499.7,2499.6,2.37953123]
[1751472031685,0.9197764,2499.7,2499.6,2.37953123]
[1751472031988,0.7998,2499.5,2499.4,3.89126123]
[1751472032792,1.877,2499.7,2499.4,3.89124123]
[1751472033091,0.9198064,2499.6,2499.4,1.5117]
[1751472033290,0.9198064,2499.6,2499.4,0.7119]
[1751472033491,0.9197764,2499.7,2499.6,0.79976]
[1751472033692,0.79975,2499.7,2499.6,3.18026003]
[1751472033893,0.120024,2499.7,2499.6,2.38050003]
[1751472034083,32.245754,2499.7,2499.6,0.79974]
[1751472034288,32.12573,2499.7,2499.5,2.38050003]
[1751472034593,32.12573,2499.7,2499.6,0.6544]
[1751472035393,11.679,2499.9,2499.6,0.6544]
[1751472035594,32.10772,2499.8,2499.7,0.79972]
[1751472035891,32.10772,2499.8,2499.6,3.03490003]
[1751472035892,0.79973,2499.7,2499.6,1.45414]
[1751472036790,1.99886,2500.3,2499.6,2.65378]
[1751472036986,0.9197468,2499.7,2499.6,2.38050003]
[1751472037193,0.7998,2499.5,2499.4,6.29545753]
[1751472037898,31.307,2499.8,2499.4,7.09528753]
[1751472038192,31.307,2499.8,2499.6,2.38285753]
[1751472038193,0.9197764,2499.7,2499.6,2.38285753]
[1751472038394,0.1200264,2499.7,2499.6,3.18261753]
[1751472038593,31.307,2499.8,2499.7,0.79973]
[1751472038795,31.307,2499.8,2499.7,3.1817411]
[1751472038995,31.307,2499.8,2499.7,2.3820111]
[1751472039195,32.1067,2499.8,2499.7,0.79973]
[1751472039498,32.1067,2499.8,2499.7,2.3820111]
[1751472039796,32.1067,2499.8,2499.7,3.1817411]
[1751472040199,32.1067,2499.8,2499.7,2.3820111]
[1751472040397,0.79973,2499.7,2499.6,2.3820111]
[1751472040602,0.7998,2499.5,2499.4,4.9128]
[1751472040898,0.7998,2499.5,2499.4,2.51193]
[1751472041098,0.79979,2499.6,2499.5,0.7998]
[1751472041291,0.79979,2499.6,2499.5,3.18389236]
[1751472041496,0.919802,2499.6,2499.5,3.18389236]
[1751472041995,0.919802,2499.6,2499.5,2.38409236]
[1751472042202,0.7998,2499.5,2499.4,1.7121]
[1751472042403,32.0948,2499.5,2499.4,1.7121]
[1751472042697,32.2148216,2499.5,2499.4,1.7121]
[1751472042898,0.9198216,2499.5,2499.4,1.0002]
[1751472043094,0.79983,2499.4,2499.3,1.0002]
[1751472043501,0.79983,2499.4,2499.3,0.79986]
[1751472044002,0.79983,2499.4,2499.3,1.50436]
[1751472044201,0.79983,2499.4,2499.3,0.7045]
[1751472046902,0.79986,2499.3,2499.2,3.5225]
[1751472047108,2.18036,2499.3,2499.2,3.5225]
[1751472047704,32.09686,2499.3,2499.2,3.5225]
[1751472048498,32.21689601,2499.3,2499.2,2.8008]
[1751472048703,0.80002,2498.8,2498.7,0.6524]
[1751472048901,31.297,2498.8,2498.5,0.80011]
[1751472049210,0.80001,2498.9,2498.7,0.80003]
[1751472049403,31.297,2498.8,2498.7,0.80003]
[1751472050105,0.5423,2499.4,2498.6,3.33511]
[1751472050301,43.73688,2499.3,2499.1,0.79992]
[1751472050606,43.85694003,2499.3,2499.2,0.7066]
[1751472050909,43.73688,2499.3,2499.2,0.7066]
[1751472051113,45.29841841,2499.3,2498.9,3.2014]
[1751472051316,0.79994,2499.1,2498.9,4.00137]
[1751472051608,0.79994,2499.1,2499.0,2.8011]
[1751472051808,32.09894,2499.1,2499.0,2.8011]
[1751472052404,32.21898801,2499.1,2499.0,2.8011]
[1751472056011,37.21898801,2499.1,2499.0,2.8011]
[1751472056816,37.48929002,2499.1,2499.0,2.8011]
[1751472057611,37.48929002,2499.1,2499.0,1.66158]
[1751472057812,0.79996,2499.0,2498.9,1.08246001]
[1751472058116,0.80002,2498.8,2498.7,0.01485]
[1751472058312,2.00026,2498.6,2497.9,3.9679545]
[1751472058512,2.00038,2498.4,2497.9,3.9679545]
[1751472058719,0.80028,2498.0,2497.9,3.9679545]
[1751472058918,32.10228,2498.0,2497.9,3.9679545]
[1751472059119,0.80031,2497.9,2497.8,4.6428545]
[1751472059412,12.56339405,2497.9,2497.8,3.85615813]
[1751472059619,43.06508405,2497.9,2497.8,0.6749]
[1751472059817,43.06508405,2497.9,2497.8,1.47524]
[1751472060019,43.06508405,2497.9,2497.8,0.6749]
[1751472060315,43.06808405,2497.9,2497.8,1.47524]
[1751472060515,11.643,2498.0,2497.8,2.0296]
[1751472060819,57.607,2498.5,2498.3,0.80018]
[1751472060820,11.643,2498.4,2498.3,0.80018]
[1751472061115,42.948,2498.4,2498.3,0.80018]
[1751472061321,42.948,2498.4,2498.2,0.80019]
[1751472061522,42.948,2498.4,2498.3,1.49428]
[1751472061821,42.948,2498.4,2498.3,0.6941]
[1751472062123,43.86824165,2498.4,2498.1,0.80023]
[1751472062323,0.80018,2498.3,2498.0,3.87564529]
[1751472062519,0.80018,2498.3,2498.0,1.49436]
[1751472062822,0.12008165,2498.2,2498.0,0.6941]
[1751472063017,31.356,2498.1,2497.6,5.05954529]
[1751472063330,32.15625,2498.1,2497.8,0.80033]
[1751472063622,0.12008886,2498.0,2497.6,0.486]
[1751472063823,0.80037,2497.7,2497.6,0.486]
[1751472064017,43.79637,2497.7,2497.6,0.486]
[1751472064215,43.91646848,2497.7,2497.6,0.486]
[1751472065119,0.92046848,2497.7,2497.6,0.486]
[1751472065326,43.91846848,2497.7,2497.6,0.486]
[1751472065519,43.11809848,2497.7,2497.6,1.2864]
[1751472065721,43.11809848,2497.7,2497.6,1.9527]
[1751472066024,43.82037,2497.7,2497.6,1.1523]
[1751472067726,43.02,2497.7,2497.6,1.1523]
[1751472067925,43.82037,2497.7,2497.6,1.1523]
[1751472068825,43.9404829,2497.7,2497.6,0.486]
[1751472069526,45.3056829,2497.7,2497.6,0.486]
[1751472071122,0.9204829,2497.7,2497.6,0.486]
[1751472071430,43.9064829,2497.7,2497.6,0.486]
[1751472072026,45.2875829,2497.7,2497.6,0.486]
[1751472072428,50.2875829,2497.7,2497.6,1e-05]
[1751472072628,50.7845829,2497.7,2497.6,1e-05]
[1751472072828,0.8004,2497.6,2497.5,0.09149]
[1751472073030,73.6165,2497.6,2497.5,0.09149]
[1751472073229,0.80063,2496.9,2496.8,0.6828]
[1751472073432,0.80063,2496.9,2496.2,3.18154529]
[1751472073433,2.00172,2496.8,2496.2,3.18154529]
[1751472073626,2.00172,2496.8,2496.3,1.3455]
[1751472073627,0.80079,2496.4,2496.3,1.3455]
[1751472073832,32.19379,2496.4,2496.3,1.3455]
[1751472074135,32.31395823,2496.4,2496.3,1.3455]
[1751472074730,43.96895823,2496.4,2496.3,1.3455]
[1751472076539,0.92095823,2496.4,2496.3,1.3455]
[1751472077032,31.376,2496.4,2496.3,1.3455]
[1751472077232,31.376,2496.4,2496.3,2.14632]
[1751472077627,32.17679,2496.4,2496.3,1.3455]
[1751472077832,32.29696545,2496.4,2496.3,1.3455]
[1751472078436,32.29696545,2496.4,2496.3,0.6828]
[1751472079138,0.80085,2496.2,2496.1,0.71]
[1751472079339,32.20585,2496.2,2496.1,0.71]
[1751472079533,32.32602545,2496.2,2496.1,0.71]
[1751472080334,44.00002545,2496.2,2496.1,0.71]
[1751472080542,44.00002545,2496.2,2496.1,2.7163]
[1751472080836,0.80089,2496.1,2496.0,0.0905]
[1751472081038,43.19917545,2496.2,2495.5,1.3739]
[1751472081339,43.19917545,2496.2,2495.5,3.51846]
[1751472081340,0.80099,2495.8,2495.5,3.51846]
[1751472081538,31.393,2495.7,2495.5,2.7174]
[1751472081739,11.678,2495.6,2495.5,3.51848]
[1751472083042,12.47905,2495.6,2495.5,2.7174]
[1751472083735,12.47905,2495.6,2495.2,0.0904]
[1751472083736,0.80114,2495.3,2495.2,0.0904]
[1751472083942,32.18314,2495.3,2495.2,0.0904]
[1751472084933,43.056,2495.3,2495.0,1.3613]
[1751472085133,43.056,2495.3,2495.2,0.80117]
[1751472085539,57.665,2495.8,2495.3,0.80114]
[1751472085744,0.80108,2495.5,2495.4,1.3613]
[1751472085939,31.384,2495.5,2495.4,2.16241]
[1751472086139,43.065,2495.5,2495.4,2.1624]
[1751472087142,58.46599,2495.8,2495.7,0.80101]
[1751472087342,0.80102,2495.7,2495.6,0.80102]
[1751472087546,101.522,2495.8,2495.7,0.80101]
[1751472087748,57.665,2495.8,2495.7,0.80101]
[1751472087942,100.724,2495.8,2495.7,0.80101]
[1751472088142,0.80106,2495.6,2495.5,0.80105]
[1751472088344,32.17806,2495.6,2495.5,0.80105]
[1751472088642,31.377,2495.6,2495.4,0.80108]
[1751472088843,0.8011,2495.5,2495.4,0.80108]
[1751472089044,32.17806,2495.6,2495.5,0.80108]
[1751472089441,31.377,2495.6,2495.5,0.80108]
[1751472089648,57.665,2495.8,2495.7,0.80101]
[1751472089852,100.711,2495.8,2495.7,0.80101]
[1751472090145,100.711,2495.8,2495.3,0.7197]
[1751472090346,0.80104,2495.7,2495.6,0.80104]
[1751472091852,100.711,2495.8,2495.1,2.75611]
[1751472092152,0.80107,2495.6,2495.5,0.80105]
[1751472092351,32.14407,2495.6,2495.5,0.80105]
[1751472092852,0.80111,2495.5,2495.4,0.80109]
[1751472093046,0.80115,2495.4,2495.3,0.80112]
[1751472093256,32.14515,2495.4,2495.3,0.80112]
[1751472093451,32.14511,2495.4,2495.3,0.80112]
[1751472093657,31.344,2495.4,2495.3,0.80112]
[1751472094059,57.665,2495.8,2495.3,7.00284]
[1751472094259,43.82702,2495.7,2495.6,0.80101]
[1751472094662,0.80108,2495.6,2495.5,0.80106]
[1751472095464,43.82704,2495.7,2495.6,0.80105]
[1751472095863,43.026,2495.7,2495.2,2.00293]
[1751472096063,0.80109,2495.5,2495.4,0.80109]
[1751472096264,0.80112,2495.4,2495.3,0.80111]
[1751472097060,0.80117,2495.3,2495.2,0.80116]
[1751472097261,32.14617,2495.3,2495.2,0.80116]
[1751472097955,57.665,2495.8,2495.3,2.00284]
[1751472098268,43.029,2495.7,2495.6,0.80101]
[1751472098765,43.83001,2495.7,2495.6,0.80101]
[1751472099565,43.029,2495.7,2495.6,0.80105]
[1751472099760,57.665,2495.8,2495.7,0.80101]
[1751472099961,43.029,2495.8,2495.7,0.80101]
[1751472102568,43.82998,2495.8,2495.7,0.80101]
[1751472103163,0.80105,2495.6,2495.5,1.47434]
[1751472103368,32.14505,2495.6,2495.5,0.6733]
[1751472104168,0.80108,2495.5,2495.4,0.80109]
[1751472104671,32.14508,2495.6,2495.5,0.80108]
[1751472104867,31.344,2495.6,2495.2,0.6733]
[1751472105069,0.8011,2495.5,2495.4,0.8011]
[1751472105267,0.80112,2495.4,2495.3,0.80112]
[1751472105465,31.343,2495.4,2495.3,0.80112]
[1751472105666,0.80114,2495.3,2495.2,1.47445]
[1751472105864,31.343,2495.4,2495.2,1.47445]
[1751472106264,0.80114,2495.3,2495.2,1.47445]
[1751472106465,2.1076,2495.6,2495.2,0.6733]
[1751472106662,0.80099,2495.8,2495.7,0.801]
[1751472106864,11.683,2495.8,2495.4,2.00278]
[1751472107065,11.683,2495.8,2495.7,0.80101]
[1751472107368,43.027,2495.8,2495.7,0.80101]
[1751472107565,11.683,2495.9,2495.8,0.80098]
[1751472107870,43.027,2495.9,2495.8,0.80098]
[1751472108667,43.82795,2495.9,2495.8,0.80098]
[1751472108875,31.344,2495.9,2495.7,5.24524529]
[1751472109169,31.344,2495.9,2495.8,5.31422529]
[1751472110770,0.7151,2496.3,2495.9,2.00232]
[1751472110974,0.80076,2496.6,2496.5,0.80072]
[1751472111171,32.14176,2496.6,2496.5,0.80072]
[1751472111568,12.45671,2496.7,2496.6,0.80073]
[1751472111771,12.45671,2496.7,2496.3,5.83739529]
[1751472111772,0.80068,2496.8,2496.7,0.80065]
[1751472112072,43.79768,2496.8,2496.7,0.80065]
[1751472113167,31.341,2496.8,2496.6,2.00181]
[1751472113473,31.341,2496.8,2496.7,0.80069]
[1751472114174,11.655,2497.0,2496.9,0.80063]
[1751472114364,11.655,2497.0,2496.8,1.47295]
[1751472114365,0.80063,2496.9,2496.8,1.47295]
[1751472114568,0.80063,2496.9,2496.8,0.6723]
[1751472114970,0.80063,2496.9,2496.8,1.47296]
[1751472115574,0.80063,2496.9,2496.8,0.6723]
[1751472115774,43.79262,2497.0,2496.8,0.6723]
[1751472115976,43.79262,2497.0,2496.9,0.80063]
[1751472115977,45.15202,2497.0,2496.9,0.80063]
[1751472117271,57.666,2498.4,2497.8,0.80032]
[1751472117472,13.65474,2498.0,2497.1,2.00142]
[1751472117674,0.80041,2497.6,2497.2,5.16764529]
[1751472117878,31.333,2497.5,2497.4,0.80047]
[1751472118168,31.333,2497.5,2497.2,3.85174529]
[1751472118169,11.654,2498.5,2497.2,9.13572848]
[1751472118373,2.00012,2498.8,2497.8,2.0008]
[1751472118671,11.652,2498.6,2498.3,0.80018]
[1751472118872,11.652,2498.6,2497.9,7.83465529]
[1751472119073,31.327,2498.5,2498.1,2.00062]
[1751472119269,0.39906008,2498.8,2497.9,4.51804529]
[1751472119469,0.80028,2498.0,2497.9,0.6702]
[1751472119676,0.80032,2497.9,2497.7,0.80035]
[1751472119870,0.80034,2497.8,2497.7,0.80035]
[1751472120073,0.80037,2497.7,2497.5,1.3615]
[1751472120271,0.80041,2497.6,2497.5,1.3615]
[1751472120572,0.12009848,2497.6,2496.7,7.14949979]
[1751472120769,0.80047,2497.4,2497.2,0.80053]
[1751472120973,31.326,2497.3,2497.1,0.80055]
[1751472121178,0.80055,2497.2,2497.1,0.80056]
[1751472121473,32.12652,2497.3,2497.2,0.80053]
[1751472122074,0.80061,2497.0,2496.9,0.80061]
[1751472122274,0.80061,2497.0,2496.9,0.80063]
[1751472122574,32.12661,2497.0,2496.9,0.80063]
[1751472122775,31.326,2497.0,2496.9,0.80063]
[1751472123079,32.1266,2497.0,2496.9,0.80063]
[1751472123279,31.326,2497.0,2496.9,0.80063]
[1751472123577,32.1266,2497.0,2496.9,0.80063]
[1751472124079,31.326,2497.0,2496.9,0.80063]
[1751472124477,31.326,2497.0,2496.9,2.23583]
[1751472124678,31.326,2497.0,2496.9,0.80063]
[1751472124679,32.1266,2497.0,2496.9,0.80063]
[1751472124877,1.311,2497.4,2496.8,0.6952]
[1751472125078,0.80058,2497.1,2497.0,0.80058]
[1751472125484,32.12358,2497.1,2497.0,0.80058]
[1751472125880,0.80058,2497.1,2497.0,0.80058]
[1751472126080,32.12258,2497.1,2497.0,0.80058]
[1751472126377,0.80066,2496.8,2496.7,0.0859]
[1751472126573,43.89166,2496.8,2496.7,0.0859]
[1751472126774,0.80079,2496.4,2496.3,0.6619]
[1751472126977,32.25679,2496.4,2496.3,0.6619]
[1751472127873,1.4293,2496.8,2496.3,0.6619]
[1751472128181,0.80079,2496.4,2496.3,1.46269]
[1751472128378,0.80079,2496.4,2496.3,1.46272]
[1751472128583,0.80078,2496.5,2496.4,0.80078]
[1751472129084,0.80079,2496.4,2496.3,1.46271]
[1751472129278,0.80079,2496.4,2496.3,1.4627]
[1751472129474,0.80079,2496.4,2496.3,0.6619]
[1751472129978,46.52406,2496.7,2496.3,0.6619]
[1751472129979,0.80078,2496.5,2496.3,0.6619]
[1751472130281,0.80074,2496.6,2496.5,0.80075]
[1751472130581,0.80079,2496.4,2496.3,1.46271]
[1751472130982,32.21479,2496.4,2496.3,1.46271]
[1751472131680,0.80075,2496.6,2496.5,0.80073]
[1751472131881,0.80078,2496.5,2496.4,0.80077]
[1751472132082,32.20078,2496.5,2496.4,0.80077]
[1751472132282,32.19978,2496.5,2496.4,0.80077]
[1751472132487,0.80078,2496.5,2496.4,0.80077]
[1751472132785,2.00151,2497.0,2496.3,2.66394]
[1751472133078,0.80075,2496.6,2496.5,0.80072]
[1751472133784,0.80075,2496.6,2496.5,1.49942]
[1751472133982,32.20275,2496.6,2496.5,1.49942]
[1751472134183,61.01758,2497.1,2496.7,0.80066]
[1751472134378,0.80065,2496.9,2496.6,2.00182]
[1751472134685,31.392,2496.9,2496.8,0.80062]
[1751472134978,0.80072,2496.7,2496.6,0.80069]
[1751472135185,0.80073,2496.6,2496.5,1.49944]
[1751472135376,1.3671,2496.8,2496.3,5.84549529]
[1751472135581,0.80071,2496.7,2496.6,0.80069]
[1751472135782,12.45269,2496.8,2496.7,0.80069]
[1751472136083,43.86069,2496.8,2496.7,0.80069]
[1751472136481,0.80075,2496.6,2496.5,0.80073]
[1751472137079,1.3618,2496.7,2496.6,0.80073]
[1751472137279,33.56749,2496.7,2496.6,0.80073]
[1751472139586,2.16249,2496.7,2496.6,0.80073]
[1751472139886,33.54349,2496.7,2496.6,0.80073]
[1751472140886,0.80075,2496.6,2496.5,0.80073]
[1751472141587,1.3185,2496.6,2496.5,0.80073]
[1751472141788,31.381,2496.7,2496.6,0.80073]
[1751472141984,1.3405,2496.9,2496.5,2.00187]
[1751472142184,58.3729,2497.1,2496.6,0.80073]
[1751472142483,58.3729,2497.1,2496.7,2.00171]
[1751472142789,69.32,2497.1,2497.0,0.8006]
[1751472142990,100.671,2497.1,2496.5,5.18343529]
[1751472143188,100.671,2497.1,2496.8,0.80064]
[1751472143189,0.80066,2496.9,2496.8,0.80064]
[1751472143388,0.8007,2496.7,2496.6,0.8007]
[1751472143585,0.80073,2496.6,2496.5,0.80074]
[1751472143787,31.377,2496.7,2496.6,0.80073]
[1751472143988,32.17769,2496.7,2496.6,0.80073]
[1751472144184,31.377,2496.7,2496.4,3.90214529]
[1751472144389,32.17771,2496.7,2496.6,0.80073]
[1751472144686,0.80076,2496.5,2496.4,3.18154529]
[1751472144886,0.80079,2496.4,2496.3,3.84344529]
[1751472145086,0.80079,2496.4,2496.3,3.18154529]
[1751472145087,33.52369,2496.4,2496.3,3.18154529]
[1751472145387,33.52369,2496.4,2496.3,0.80082]
[1751472145586,32.7229,2496.4,2496.3,3.97973217]
[1751472145889,33.52369,2496.4,2496.3,0.80082]
[1751472146487,32.7229,2496.4,2496.3,0.80082]
[1751472146688,31.373,2496.4,2496.3,0.80082]
[1751472147288,0.80073,2496.7,2496.3,2.00206]
[1751472147490,0.80072,2496.7,2496.6,0.80073]
[1751472147685,43.018,2496.7,2496.6,0.80073]
[1751472148795,43.81869,2496.7,2496.6,0.80073]
[1751472148995,43.018,2496.7,2496.6,0.80073]
[1751472149190,43.81869,2496.7,2496.6,0.80073]
[1751472151398,0.80076,2496.5,2496.4,1.46157]
[1751472151599,32.13976,2496.5,2496.4,1.46157]
[1751472151799,0.80076,2496.5,2496.4,1.46157]
[1751472152004,43.80176,2496.5,2496.4,1.46157]
[1751472152297,43.80176,2496.5,2496.4,4.63972846]
[1751472152802,43.001,2496.5,2496.4,4.63972846]
[1751472153392,43.001,2496.5,2496.4,1.46157]
[1751472154400,43.001,2496.5,2496.4,5.4295245]
[1751472154997,1.372,2496.8,2496.4,4.6287545]
[1751472155203,0.80067,2496.8,2496.7,3.98664485]
[1751472155402,43.002,2496.8,2496.7,3.98664485]
[1751472155605,0.80066,2496.9,2496.8,0.80063]
[1751472155802,43.80266,2496.9,2496.8,0.80063]
[1751472156103,1.51592,2497.0,2496.9,0.80063]
[1751472156401,58.9722,2497.1,2497.0,0.8006]
[1751472156604,101.9742,2497.1,2497.0,0.8006]
[1751472156794,71.4448,2497.1,2497.0,0.8006]
[1751472156997,101.9742,2497.1,2497.0,0.8006]
[1751472157296,0.80061,2497.0,2496.9,0.80061]
[1751472157500,59.77279,2497.1,2497.0,0.8006]
[1751472157700,101.9742,2497.1,2497.0,0.8006]
[1751472157894,0.80063,2497.0,2496.9,0.80061]
[1751472158100,58.44959,2497.1,2497.0,0.8006]
[1751472158300,101.45059,2497.1,2497.0,0.8006]
[1751472158699,58.44959,2497.1,2497.0,0.8006]
[1751472158900,101.44959,2497.1,2497.0,0.8006]
[1751472161604,0.8006,2497.0,2496.9,3.18595485]
[1751472161806,2.8831,2497.0,2496.9,3.18595485]
[1751472162007,2.8831,2497.0,2496.8,3.18595485]
[1751472162008,0.80063,2496.9,2496.8,3.18595485]
[1751472162208,0.80066,2496.8,2496.7,3.18595485]
[1751472162610,2.20106,2496.8,2496.7,3.18595485]
[1751472163102,2.20106,2496.8,2496.7,3.98664485]
[1751472163308,2.20106,2496.8,2496.7,3.18595485]